bitfinex/quotes_ETHUSD_20240718
["timestamp","ask_amount","ask_price","bid_price","bid_amount"]
[1721341826607,2.91057,3435.8,3435.3,5.22148]
[1721341827118,2.91036,3436.0,3435.3,5.22148]
[1721341827276,2.91058,3435.8,3435.3,2.3106]
[1721341827476,2.91058,3435.8,3435.2,2.91102]
[1721341828590,2.91061,3435.7,3435.2,2.91102]
[1721341828777,2.91061,3435.7,3435.0,2.91113]
[1721341828975,2.91061,3435.7,3435.1,2.9111]
[1721341830710,2.91071,3435.6,3435.1,2.9111]
[1721341830864,2.91078,3435.5,3434.9,12.75274]
[1721341831177,2.91075,3435.6,3435.0,2.91115]
[1721341832264,2.91075,3435.6,3435.1,2.91111]
[1721341832764,2.91075,3435.6,3434.9,5.31272]
[1721341833319,2.91075,3435.6,3435.0,2.91116]
[1721341833892,2.91075,3435.6,3434.9,5.31272]
[1721341834109,2.9108,3435.5,3434.9,5.31272]
[1721341834491,2.9108,3435.5,3434.9,8.22395]
[1721341834787,2.9108,3435.5,3435.0,2.9112]
[1721341835712,2.9108,3435.5,3434.9,5.31272]
[1721341836471,2.9108,3435.5,3434.9,8.22394]
[1721341837213,3.0,3436.3,3434.9,2.4015]
[1721341837532,2.4158,3436.4,3435.4,5.31291]
[1721341837533,2.91029,3436.1,3435.4,5.31291]
[1721341837684,2.91045,3435.9,3435.4,2.4021]
[1721341838204,2.91054,3435.8,3435.4,2.4021]
[1721341843238,5.8208,3436.0,3435.4,2.4021]
[1721341843733,2.91037,3436.0,3435.4,5.31296]
[1721341843893,2.91037,3436.0,3435.5,2.91077]
[1721341844095,5.82049,3436.2,3435.5,2.91077]
[1721341844347,8.30248,3436.7,3435.8,2.9105]
[1721341844348,2.91005,3436.4,3435.8,2.9105]
[1721341844535,2.91005,3436.4,3435.9,2.3899]
[1721341845442,2.90989,3436.6,3435.9,2.3899]
[1721341845663,2.90971,3436.8,3436.2,2.91014]
[1721341846231,2.90859415,3436.8,3436.2,2.91014]
[1721341846430,2.90954,3437.0,3436.1,2.91024]
[1721341846627,2.90954,3437.0,3436.3,2.91005]
[1721341846628,2.90959,3436.9,3436.3,2.91005]
[1721341847237,2.90959,3436.9,3436.4,2.91002]
[1721341847544,2.90938,3437.2,3436.4,2.91002]
[1721341847849,3.0,3437.1,3436.4,2.91002]
[1721341848436,2.90956,3437.0,3436.4,2.91002]
[1721341850719,2.4385,3437.9,3436.5,2.52319821]
[1721341851043,2.90891,3437.8,3437.1,5.37437]
[1721341851217,2.90891,3437.8,3437.1,2.465]
[1721341851519,2.90905,3437.6,3437.1,2.465]
[1721341851893,2.90905,3437.6,3437.1,5.37442]
[1721341852283,2.90905,3437.6,3437.1,2.465]
[1721341854094,2.90864,3438.1,3437.4,2.90916]
[1721341854295,2.90808,3438.7,3437.1,2.465]
[1721341854296,2.90831,3438.5,3437.9,2.465]
[1721341854509,2.90838,3438.4,3437.9,2.465]
[1721341856718,2.90838,3438.4,3437.7,2.9089]
[1721341857134,2.90819,3438.6,3437.7,2.9089]
[1721341857506,2.90841,3438.3,3437.7,2.9089]
[1721341857903,2.90851,3438.2,3437.5,5.37749]
[1721341858099,2.90851,3438.2,3437.5,5.37742]
[1721341858326,2.90851,3438.2,3437.6,2.90899]
[1721341860131,2.90828,3438.5,3437.8,2.9088]
[1721341860429,2.90809,3438.7,3437.7,2.90888]
[1721341860671,2.90824,3438.5,3437.9,2.90869]
[1721341860943,2.90824,3438.5,3437.9,5.81736]
[1721341861247,2.90824,3438.5,3437.9,2.90867]
[1721341861952,2.90824,3438.5,3437.9,2.90868]
[1721341862437,2.90824,3438.5,3437.9,2.90867]
[1721341863024,2.90824,3438.5,3438.0,2.90866]
[1721341863523,2.90824,3438.5,3437.9,2.90867]
[1721341864625,2.90845,3438.3,3437.7,2.9089]
[1721341864935,2.90824,3438.5,3437.7,2.90891]
[1721341864936,2.90855,3438.2,3437.7,2.90891]
[1721341865662,2.90838,3438.4,3437.8,2.90883]
[1721341866246,2.9081,3438.7,3437.6,0.0581761]
[1721341866451,2.90822,3438.6,3438.0,2.90861]
[1721341868052,2.90793,3438.9,3438.1,2.3276]
[1721341868259,5.90776,3439.1,3438.5,2.90823]
[1721341868427,2.90776,3439.1,3438.5,2.90823]
[1721341868825,6.35175503,3439.1,3438.5,2.90823]
[1721341869228,3.44394503,3439.1,3438.5,2.90823]
[1721341869762,2.90776,3439.1,3438.5,2.90823]
[1721341871554,2.90776,3439.1,3438.6,2.3352]
[1721341871947,2.90728,3439.7,3438.9,2.90784]
[1721341872335,2.90734,3439.6,3438.9,2.90784]
[1721341872533,2.90741,3439.5,3438.9,2.90784]
[1721341872740,2.90749,3439.4,3438.7,5.81604]
[1721341873071,2.90749,3439.4,3438.7,2.90801]
[1721341873222,2.90766,3439.2,3438.7,2.90801]
[1721341873423,2.90766,3439.2,3438.6,2.3352]
[1721341873658,2.90766,3439.2,3438.6,5.24331]
[1721341873854,2.90773,3439.1,3438.6,5.24331]
[1721341874221,2.90791,3438.9,3438.2,10.34845]
[1721341874419,2.90804,3438.8,3438.3,2.3624]
[1721341875820,2.90804,3438.8,3438.3,5.2708]
[1721341876139,2.90812,3438.7,3438.3,2.3624]
[1721341876934,2.90791,3438.9,3438.3,2.3624]
[1721341877445,2.90799,3438.8,3438.3,2.3624]
[1721341877653,3.489294,3439.1,3438.3,5.27077]
[1721341877953,2.9079,3438.9,3438.3,5.27077]
[1721341879256,2.90779,3439.1,3438.5,2.90819]
[1721341879460,2.90751,3439.4,3438.7,2.908]
[1721341880164,2.90751,3439.4,3438.8,2.90797]
[1721341881731,2.90751,3439.4,3438.9,2.90788]
[1721341889258,2.90733,3439.6,3439.0,2.90781]
[1721341889655,2.90733,3439.6,3439.1,2.304]
[1721341890183,2.90718,3439.8,3439.1,2.304]
[1721341890348,3.727818,3439.8,3439.1,2.304]
[1721341891086,2.90736,3439.6,3439.1,2.304]
[1721341892644,2.9074,3439.5,3439.1,2.304]
[1721341892849,2.90736,3439.6,3438.8,5.39152]
[1721341892850,2.90748,3439.4,3438.8,5.39152]
[1721341893183,2.90748,3439.4,3438.9,2.9079]
[1721341893562,3.721344,3439.4,3438.8,2.4836]
[1721341893879,5.81559,3439.1,3438.5,2.2534]
[1721341894050,2.90783,3439.0,3438.5,2.2534]
[1721341896469,2.90778,3439.1,3438.5,5.16161]
[1721341896992,2.90783,3439.0,3438.5,5.16161]
[1721341901595,2.90753,3439.4,3438.7,2.90803]
[1721341901787,2.90743,3439.5,3438.7,2.90803]
[1721341902390,2.90749,3439.4,3438.7,2.90803]
[1721341902612,2.90761,3439.3,3438.7,2.90803]
[1721341902823,2.90786,3439.0,3438.5,2.2534]
[1721341903333,2.90797,3438.9,3438.5,2.2534]
[1721341903629,2.90799,3438.8,3438.5,2.2534]
[1721341904740,0.581585,3438.8,3437.9,7.44]
[1721341904882,0.581585,3438.8,3437.6,2.3597]
[1721341904883,2.90854,3438.2,3437.6,2.3597]
[1721341905080,2.90833,3438.4,3437.6,2.3597]
[1721341905081,2.90858,3438.1,3437.6,2.3597]
[1721341905318,2.90874,3438.0,3437.6,2.3597]
[1721341905522,2.90897,3437.7,3437.2,2.3597]
[1721341905763,2.909,3437.6,3436.9,7.44]
[1721341905925,2.90909,3437.5,3436.8,5.26934]
[1721341906726,2.90909,3437.5,3436.9,2.90959]
[1721341908687,2.90878,3437.9,3436.8,2.3597]
[1721341908890,2.90878,3437.9,3436.9,2.90953]
[1721341909088,2.90878,3437.9,3437.2,2.90934]
[1721341909494,2.90878,3437.9,3437.0,2.90944]
[1721341909729,0.64061229,3438.1,3436.8,5.26933]
[1721341909900,2.90918,3437.4,3436.8,5.26933]
[1721341910229,2.90915,3437.5,3436.8,5.26933]
[1721341911231,2.90915,3437.5,3436.9,2.90957]
[1721341911439,2.90906,3437.6,3437.0,2.90946]
[1721341911638,2.90888,3437.8,3437.1,2.90935]
[1721341912196,2.90879,3437.9,3437.3,2.90922]
[1721341912399,2.90852,3438.2,3436.9,2.3051]
[1721341912704,2.90852,3438.2,3436.5,2.491]
[1721341912705,2.90852,3438.2,3437.6,2.3051]
[1721341913139,2.90866,3438.1,3437.6,2.3051]
[1721341915243,2.90866,3438.1,3437.6,5.21409]
[1721341915618,2.90836,3438.4,3437.6,5.21409]
[1721341916259,2.9085,3438.2,3437.6,5.21409]
[1721341918255,2.9085,3438.2,3437.7,2.90891]
[1721341919260,5.81676,3438.4,3437.7,2.90891]
[1721341919417,2.90847,3438.3,3437.7,2.90891]
[1721341920350,2.90847,3438.3,3437.8,2.90883]
[1721341920879,2.90851,3438.2,3437.6,5.21409]
[1721341923177,2.90859,3438.1,3437.6,2.3051]
[1721341924179,2.90847,3438.3,3437.6,5.21408]
[1721341924562,2.90855,3438.2,3437.6,5.21408]
[1721341926391,2.90866,3438.1,3437.6,2.3051]
[1721341930680,2.90867,3438.0,3437.5,2.90903]
[1721341930898,2.90867,3438.0,3437.3,2.4007]
[1721341931374,2.90867,3438.0,3437.4,2.90917]
[1721341931605,2.90892,3437.7,3437.0,5.34096]
[1721341931785,5.81791,3437.7,3437.1,5.90941]
[1721341931983,2.90892,3437.7,3437.1,5.90941]
[1721341932721,2.90912,3437.5,3437.0,2.4315]
[1721341932931,2.90949,3437.1,3436.5,2.3945]
[1721341933077,2.90932,3437.3,3436.5,2.3945]
[1721341933078,2.90951,3437.0,3436.5,2.3945]
[1721341933283,2.90939,3437.2,3436.5,5.30443]
[1721341933927,2.90944,3437.1,3436.5,2.3945]
[1721341934422,2.90934,3437.2,3436.5,2.3945]
[1721341934804,2.90953,3437.0,3436.5,2.3945]
[1721341935128,2.90934,3437.2,3436.6,2.90983]
[1721341935627,2.90957,3437.0,3436.5,2.3945]
[1721341936003,2.9096,3436.9,3436.5,2.3945]
[1721341940536,2.90944,3437.1,3436.5,5.30437]
[1721341942033,2.9093,3437.3,3436.8,2.90967]
[1721341942223,2.9093,3437.3,3436.6,2.90976]
[1721341942403,2.9093,3437.3,3436.7,2.90975]
[1721341942610,2.90936,3437.2,3436.7,2.90975]
[1721341943937,2.90926,3437.3,3436.7,2.90969]
[1721341944294,2.90896,3437.7,3437.0,2.90943]
[1721341944495,2.90896,3437.7,3437.1,2.4461]
[1721341944496,2.90901,3437.6,3437.1,2.4461]
[1721341944732,2.3835,3438.1,3437.1,2.4461]
[1721341944733,2.90878,3437.9,3437.1,2.4461]
[1721341946399,2.90897,3437.7,3437.2,2.9093]
[1721341948704,2.90878,3437.9,3437.2,2.90929]
[1721341949244,2.90889,3437.8,3437.1,2.4461]
[1721341949450,2.90896,3437.7,3437.1,5.35548]
[1721341951017,2.90889,3437.8,3437.2,2.90933]
[1721341951746,2.90889,3437.8,3437.2,2.90927]
[1721341952151,2.90889,3437.8,3437.3,2.90925]
[1721341952365,5.17149,3438.4,3437.1,2.4461]
[1721341952646,2.90851,3438.2,3437.7,5.34457]
[1721341957466,2.90835,3438.4,3437.7,5.34455]
[1721341957660,2.90846,3438.3,3437.7,5.34455]
[1721341961479,3.490141,3438.3,3437.7,5.34455]
[1721341962362,1.037,3438.0,3437.7,5.34455]
[1721341962878,1.037,3437.8,3437.5,2.90902]
[1721341963074,1.037,3437.8,3437.5,5.81804]
[1721341963247,1.037,3437.8,3437.5,5.81805]
[1721341963435,1.037,3437.8,3437.5,2.90902]
[1721341964531,1.037,3437.8,3437.6,2.909]
[1721341965966,1.037,3438.0,3437.6,2.909]
[1721341967059,1.037,3438.2,3437.8,2.90877]
[1721341968085,2.4575,3439.1,3438.3,5.27186]
[1721341968086,1.037,3438.8,3438.3,5.27186]
[1721341968264,1.037,3438.6,3438.3,5.27186]
[1721341970050,1.037,3438.4,3438.3,2.3635]
[1721341970254,2.90812,3438.7,3438.3,2.3635]
[1721341976777,5.81626,3438.7,3438.3,2.3635]
[1721341976957,2.90841,3438.3,3437.8,2.90879]
[1721341977144,2.90841,3438.3,3438.0,2.4019]
[1721341977581,2.3427,3438.5,3437.5,9.8419]
[1721341977753,2.90876,3437.9,3437.5,7.44]
[1721341977957,2.90865,3438.1,3437.5,7.44]
[1721341978289,2.90867,3438.0,3437.5,7.44]
[1721341979455,2.90875,3437.9,3437.5,7.44]
[1721341981083,2.909,3437.6,3437.5,7.44]
[1721341981288,5.818,3437.6,3437.5,7.44]
[1721341981937,6.63407,3437.6,3437.5,7.44]
[1721341982140,2.90939,3437.2,3436.9,2.4019]
[1721341982338,2.90939,3437.2,3436.4,2.90998]
[1721341982339,0.81607,3437.6,3436.5,5.31181]
[1721341982636,2.90944,3437.1,3436.5,5.31181]
[1721341983290,2.90934,3437.3,3436.5,5.31181]
[1721341983632,2.90934,3437.3,3436.7,2.90975]
[1721341983999,8.1675,3438.2,3437.1,2.4774]
[1721341984320,5.259,3438.2,3437.1,2.4774]
[1721341984522,2.909,3437.7,3437.1,2.4774]
[1721341984700,2.90914,3437.5,3437.1,2.4774]
[1721341987445,3.36513883,3437.5,3437.1,2.4774]
[1721341988528,0.45599883,3437.5,3437.1,2.4774]
[1721341989612,3.36510883,3437.5,3437.1,2.4774]
[1721341989809,2.90926,3437.3,3437.1,2.4774]
[1721341990117,2.90926,3437.3,3436.8,2.9096]
[1721341990315,2.90926,3437.3,3436.8,5.3188]
[1721341991247,2.90926,3437.3,3436.8,2.4092]
[1721341991545,3.24578588,3437.3,3436.5,2.4092]
[1721341991757,2.90947,3437.1,3436.5,5.31907]
[1721341992058,2.90951,3437.0,3436.5,5.31907]
[1721341992419,2.90951,3437.0,3436.5,2.4092]
[1721341992740,2.90974,3436.8,3436.2,2.91015]
[1721341993723,2.9099,3436.6,3436.1,5.31945]
[1721341995014,2.90974,3436.8,3436.1,5.31945]
[1721341995217,2.90974,3436.8,3436.2,2.91019]
[1721341995413,2.90977,3436.7,3436.2,2.91019]
[1721341996388,2.9096,3436.9,3436.2,2.91019]
[1721341996602,5.81927,3436.9,3436.2,2.91019]
[1721341996777,2.9097,3436.8,3436.2,2.91019]
[1721341997794,2.90979,3436.7,3436.2,2.91019]
[1721341998284,2.90967,3436.9,3436.2,2.91019]
[1721341998649,2.90974,3436.8,3436.2,2.91019]
[1721342000292,3.46920659,3437.0,3436.3,2.91009]
[1721342001284,2.90938,3437.2,3436.6,2.90984]
[1721342001486,3.0,3437.1,3436.6,2.90984]
[1721342003328,3.0,3437.1,3436.5,2.2955]
[1721342003492,3.0,3437.1,3436.6,2.9098]
[1721342003692,5.9094,3437.2,3436.6,2.9098]
[1721342004411,3.0,3437.2,3436.6,2.90979]
[1721342004601,6.24584588,3437.3,3436.7,2.90976]
[1721342005004,0.45599883,3437.5,3437.0,2.90945]
[1721342005185,0.45599883,3437.5,3437.1,2.90941]
[1721342006723,0.45599883,3437.5,3437.3,2.90924]
[1721342006925,0.45599883,3437.5,3437.4,2.2955]
[1721342012527,0.45599883,3437.5,3437.2,2.90932]
[1721342013795,0.45599883,3437.5,3437.1,5.2323]
[1721342015246,3.36511883,3437.5,3436.9,2.90952]
[1721342015597,3.36511883,3437.5,3437.0,2.90949]
[1721342018225,1.038,3437.4,3437.0,2.90949]
[1721342020236,1.038,3437.4,3436.8,5.40292]
[1721342020412,1.038,3437.4,3436.4,2.4864]
[1721342020413,1.038,3437.0,3436.4,2.4864]
[1721342020626,1.038,3436.8,3436.4,2.4864]
[1721342020820,1.038,3436.8,3436.1,2.4993]
[1721342022313,2.90976,3436.7,3436.2,2.91012]
[1721342022538,2.90959,3436.9,3436.3,2.91009]
[1721342023551,2.90959,3436.9,3436.2,5.82023]
[1721342023760,5.81926,3436.9,3436.2,5.82023]
[1721342023929,2.90959,3436.9,3436.3,2.91009]
[1721342024329,2.90959,3436.9,3436.4,2.91001]
[1721342025218,2.90957,3437.0,3436.4,2.91001]
[1721342025753,2.69731188,3437.4,3436.2,2.91011]
[1721342025954,0.60624407,3437.3,3436.2,2.91011]
[1721342027381,2.9096,3436.9,3436.4,2.90995]
[1721342028575,2.9096,3436.9,3436.2,5.82023]
[1721342028778,2.90956,3437.0,3436.2,2.91011]
[1721342028979,2.90968,3436.8,3436.2,2.91011]
[1721342030384,2.90992,3436.6,3435.9,2.91042]
[1721342030680,2.90999,3436.5,3435.9,2.91042]
[1721342031257,2.91003,3436.4,3435.8,5.22572]
[1721342031466,2.91003,3436.4,3435.9,2.91042]
[1721342033364,2.90992,3436.6,3436.0,2.91033]
[1721342035464,2.90992,3436.6,3436.1,2.91026]
[1721342035772,3.51553407,3437.3,3436.4,2.3306]
[1721342035773,2.90961,3436.9,3436.4,2.3306]
[1721342036109,2.90989,3436.6,3436.0,2.91034]
[1721342036267,3.491854,3436.6,3436.0,2.91034]
[1721342036470,2.90989,3436.6,3436.0,2.91034]
[1721342037207,2.90989,3436.6,3436.0,2.91029]
[1721342037360,2.91002,3436.4,3435.9,2.3306]
[1721342037559,2.91002,3436.4,3435.9,5.24099]
[1721342039621,2.91002,3436.4,3435.9,2.3306]
[1721342039993,2.91013,3436.3,3435.9,2.3306]
[1721342040619,2.91013,3436.3,3435.4,2.3987]
[1721342040799,2.91013,3436.3,3435.7,2.9106]
[1721342041187,2.91054,3435.8,3435.4,2.3987]
[1721342041411,0.05891229,3436.2,3435.4,2.3987]
[1721342041412,5.8208,3436.0,3435.4,5.30956]
[1721342041828,2.91044,3435.9,3435.4,5.30956]
[1721342042321,2.91054,3435.8,3435.4,2.3987]
[1721342042742,2.91065,3435.7,3435.1,8.20122]
[1721342043048,2.91065,3435.7,3435.2,2.91103]
[1721342044550,2.4969,3436.2,3434.9,2.91128]
[1721342044551,2.91037,3436.0,3434.9,2.91128]
[1721342044855,2.911,3435.3,3434.8,2.3791]
[1721342045095,2.911,3435.3,3434.8,5.29047]
[1721342045789,2.91079,3435.5,3434.8,5.29047]
[1721342045790,2.9109,3435.4,3434.8,5.29047]
[1721342045953,2.91096,3435.3,3434.8,5.29047]
[1721342046674,2.91096,3435.3,3434.8,2.3791]
[1721342046862,2.91104,3435.2,3434.6,2.91154]
[1721342048259,2.251,3435.8,3434.5,2.3554]
[1721342048260,2.91097,3435.3,3434.7,2.91146]
[1721342048961,2.2967,3436.3,3434.8,2.413623]
[1721342049161,2.2967,3436.3,3434.8,2.3554]
[1721342049162,2.91051,3435.9,3434.8,2.3554]
[1721342049487,2.91053,3435.8,3435.1,2.91106]
[1721342049659,2.91053,3435.8,3435.2,2.91103]
[1721342049868,2.91053,3435.8,3435.1,2.91105]
[1721342049869,2.91053,3435.8,3435.3,5.39625]
[1721342052198,2.91053,3435.8,3435.3,2.91095]
[1721342052700,2.91053,3435.8,3435.1,2.91105]
[1721342052701,2.91053,3435.8,3435.1,2.91104]
[1721342054106,2.91053,3435.8,3435.2,2.91099]
[1721342056666,2.91036,3436.0,3435.0,2.2629]
[1721342056667,2.91043,3436.0,3435.0,2.2629]
[1721342056867,2.4587,3435.8,3435.0,2.2629]
[1721342057905,2.91083,3435.5,3435.0,2.2629]
[1721342059624,2.91083,3435.5,3435.0,5.1741]
[1721342062617,0.291043,3435.9,3435.0,2.2629]
[1721342062913,5.82098,3435.9,3435.0,2.2629]
[1721342063117,2.91046,3435.9,3435.0,5.17406]
[1721342063418,2.91061,3435.7,3435.2,2.91101]
[1721342063784,2.91061,3435.7,3435.0,5.17406]
[1721342064013,3.201671,3435.7,3435.0,5.17406]
[1721342065325,2.91081,3435.5,3435.0,5.17406]
[1721342065529,2.91081,3435.5,3434.9,2.91127]
[1721342066208,2.91081,3435.5,3434.9,2.91124]
[1721342069139,2.91066,3435.7,3434.9,2.91122]
[1721342069328,2.91075,3435.6,3435.0,2.91113]
[1721342070131,2.91049,3435.9,3435.2,2.91103]
[1721342070439,2.91062,3435.7,3435.2,5.35253]
[1721342070643,2.91062,3435.7,3435.2,2.4415]
[1721342070847,2.91071,3435.6,3435.2,2.4415]
[1721342071046,1.038,3435.5,3434.7,2.91141]
[1721342071351,1.038,3435.3,3434.7,2.91141]
[1721342071511,1.038,3435.3,3434.5,12.79306]
[1721342071715,2.91109,3435.2,3434.6,2.91149]
[1721342072912,5.82188,3435.4,3434.7,2.91144]
[1721342073432,2.91097,3435.3,3434.7,2.91144]
[1721342073812,2.91097,3435.3,3434.7,2.91139]
[1721342074043,5.82116,3435.8,3434.9,2.91125]
[1721342074229,5.82116,3435.8,3435.1,2.91107]
[1721342074230,2.91069,3435.7,3435.1,2.91107]
[1721342075245,2.91069,3435.7,3435.1,5.82212]
[1721342075447,2.91069,3435.7,3435.1,2.91105]
[1721342076353,2.91069,3435.7,3435.2,2.91102]
[1721342077212,2.91074,3435.6,3435.0,5.29043]
[1721342079216,2.91078,3435.5,3435.0,2.91113]
[1721342079412,2.91101,3435.3,3434.7,2.3762]
[1721342079617,2.91122,3435.0,3434.5,10.35159]
[1721342079952,2.91111,3435.2,3434.5,10.35158]
[1721342080338,2.91111,3435.2,3434.7,2.91145]
[1721342081741,5.82182,3435.4,3434.7,5.82284]
[1721342081946,2.91088,3435.4,3434.8,2.91131]
[1721342082128,5.82147,3435.6,3435.0,2.9112]
[1721342082316,3.7968884,3435.6,3435.0,2.9112]
[1721342082723,2.91078,3435.5,3435.0,2.9112]
[1721342085162,5.82164,3435.5,3434.8,2.91137]
[1721342085322,2.91087,3435.4,3434.8,5.82268]
[1721342085659,2.91087,3435.4,3434.9,2.91128]
[1721342086254,2.91087,3435.4,3434.7,2.2503]
[1721342086255,2.91104,3435.2,3434.7,2.2503]
[1721342086499,2.91104,3435.2,3434.6,2.91153]
[1721342087184,2.91104,3435.2,3434.6,5.82303]
[1721342087354,2.91104,3435.2,3434.6,2.9115]
[1721342088071,2.91104,3435.2,3434.4,5.26273]
[1721342088290,2.91124,3435.0,3434.5,2.91158]
[1721342089167,2.91104,3435.2,3434.6,2.91154]
[1721342090853,2.91091,3435.4,3434.9,2.91126]
[1721342091489,5.32147,3435.6,3434.9,2.91126]
[1721342091685,5.32147,3435.6,3434.9,8.07409]
[1721342091892,2.91077,3435.6,3434.9,8.07409]
[1721342092088,2.91079,3435.5,3434.9,5.16283]
[1721342093193,2.91079,3435.5,3434.9,8.07406]
[1721342093501,2.91079,3435.5,3435.0,2.9112]
[1721342096811,8.16791,3435.9,3434.9,2.2516]
[1721342096976,2.91053,3435.8,3435.3,2.91095]
[1721342100472,2.91036,3436.0,3435.3,2.91095]
[1721342100692,2.91053,3435.8,3435.1,5.82215]
[1721342101005,4.092619,3435.8,3435.1,2.91105]
[1721342101525,2.91062,3435.7,3435.1,2.91105]
[1721342104275,2.91062,3435.7,3435.2,2.91102]
[1721342104476,3.0,3436.1,3435.4,2.91081]
[1721342104675,2.91011,3436.3,3435.4,5.39751]
[1721342104875,2.91007,3436.4,3435.8,2.9105]
[1721342105118,2.90997,3436.5,3435.8,2.9105]
[1721342106510,2.91012,3436.3,3435.8,2.9105]
[1721342107221,2.91012,3436.3,3435.6,2.91067]
[1721342108543,2.91032,3436.1,3435.6,2.91067]
[1721342109145,0.05891229,3436.0,3435.1,2.436]
[1721342109351,0.05891229,3436.0,3435.0,10.95317067]
[1721342109352,2.91085,3435.5,3435.0,8.04201067]
[1721342109502,2.91085,3435.5,3435.0,0.60201067]
[1721342110227,2.91097,3435.3,3435.0,0.60201067]
[1721342110429,2.91112,3435.1,3435.0,0.60201067]
[1721342112415,2.91073,3435.6,3435.0,0.60201067]
[1721342112616,2.911,3435.3,3435.0,0.60201067]
[1721342113336,2.911,3435.3,3434.8,2.91137]
[1721342113700,8.82164,3435.5,3434.8,2.91137]
[1721342113900,6.929384,3435.5,3434.8,2.91137]
[1721342114112,6.929384,3435.5,3434.8,5.82267]
[1721342114113,2.91078,3435.5,3434.8,5.82267]
[1721342114310,2.91049,3435.9,3435.3,5.3166]
[1721342114513,5.82067,3436.1,3435.4,2.91086]
[1721342114738,2.91032,3436.1,3435.4,2.91086]
[1721342114952,2.91024,3436.2,3435.5,2.91076]
[1721342115165,2.91024,3436.2,3435.6,2.91063]
[1721342115960,2.91029,3436.1,3435.4,2.91081]
[1721342116164,2.91024,3436.2,3435.4,2.91081]
[1721342116165,2.91036,3436.0,3435.4,2.91081]
[1721342117423,2.91036,3436.0,3435.3,2.4057]
[1721342117664,2.91045,3435.9,3435.3,5.31664]
[1721342117949,2.91045,3435.9,3435.4,2.91086]
[1721342118556,2.91045,3435.9,3435.3,5.31664]
[1721342119815,2.91045,3435.9,3435.3,2.4057]
[1721342120062,0.05891229,3435.8,3434.9,7.44]
[1721342120214,0.05891229,3435.8,3434.6,5.3949]
[1721342120215,2.91109,3435.2,3434.6,5.3949]
[1721342120562,7.5,3436.4,3434.8,2.4834]
[1721342120858,7.5,3436.4,3435.2,2.91098]
[1721342120859,2.91051,3435.9,3435.2,2.91098]
[1721342121215,2.91051,3435.9,3435.3,2.91092]
[1721342121449,2.91051,3435.9,3435.4,2.4834]
[1721342122061,2.91036,3436.0,3435.4,2.4834]
[1721342122256,2.91046,3435.9,3435.4,2.4834]
[1721342125214,0.291046,3435.8,3435.1,5.39448]
[1721342125666,2.91068,3435.7,3435.1,5.39448]
[1721342127347,2.91068,3435.7,3435.2,2.91101]
[1721342128519,2.91068,3435.7,3435.1,2.4834]
[1721342129026,2.91068,3435.7,3435.1,5.39451]
[1721342129446,5.82098,3435.9,3435.2,2.91098]
[1721342129966,2.91053,3435.8,3435.2,2.91098]
[1721342130817,2.91063,3435.7,3435.2,2.91098]
[1721342131550,0.07600041,3435.6,3435.2,2.91098]
[1721342132574,0.07600041,3435.6,3435.3,2.91094]
[1721342133066,2.91053,3435.8,3435.3,2.91094]
[1721342133235,0.07593844,3435.5,3435.3,2.91094]
[1721342133563,2.3593,3436.2,3434.8,2.4834]
[1721342133564,2.91109,3435.2,3434.8,2.4834]
[1721342133770,2.91102,3435.3,3434.8,2.4834]
[1721342133929,0.07562425,3435.1,3434.5,2.91158]
[1721342134132,2.91117,3435.1,3434.5,2.91158]
[1721342134435,2.91136,3434.9,3434.4,2.4834]
[1721342134772,3.493389,3435.1,3434.4,2.4834]
[1721342134773,0.07547306,3434.8,3434.4,2.4834]
[1721342135078,2.98685306,3434.8,3434.4,2.4834]
[1721342135255,2.91138,3434.8,3434.4,2.4834]
[1721342135555,0.07537424,3434.7,3434.4,2.4834]
[1721342136059,2.91138,3434.8,3434.4,2.4834]
[1721342136228,0.07529284,3434.6,3434.3,2.91177]
[1721342136429,2.91126,3435.0,3434.3,2.91177]
[1721342136682,0.07524728,3434.5,3434.3,2.91177]
[1721342136984,0.07520074,3434.4,3434.3,2.91177]
[1721342137428,2.91129,3434.9,3434.3,2.91177]
[1721342137629,0.07520074,3434.4,3434.3,2.91177]
[1721342137836,2.91138,3434.8,3434.3,2.91177]
[1721342138037,0.07520074,3434.4,3434.3,2.91177]
[1721342138237,2.91138,3434.8,3434.3,2.91177]
[1721342138443,0.07520074,3434.4,3434.3,2.91177]
[1721342138650,2.91138,3434.8,3434.3,2.91177]
[1721342138852,0.07520074,3434.4,3434.3,2.91177]
[1721342139040,2.91138,3434.8,3434.3,2.91177]
[1721342139244,0.07520074,3434.4,3434.3,2.91177]
[1721342139453,2.91138,3434.8,3434.3,2.91177]
[1721342139630,0.07518427,3434.4,3434.3,2.91177]
[1721342139824,2.91138,3434.8,3434.3,2.91177]
[1721342140027,0.07518427,3434.4,3434.3,2.91177]
[1721342140267,2.91138,3434.8,3434.3,2.91177]
[1721342140430,0.0751296,3434.4,3434.3,2.91177]
[1721342140974,2.91138,3434.8,3434.3,2.91177]
[1721342141261,0.0751296,3434.4,3434.3,2.91177]
[1721342141465,2.91138,3434.8,3434.3,2.91177]
[1721342141671,0.0751296,3434.4,3434.3,2.91177]
[1721342141859,2.91138,3434.8,3434.3,2.91177]
[1721342142059,0.0751296,3434.4,3434.3,2.91177]
[1721342142375,0.07512767,3434.4,3434.3,2.91177]
[1721342142752,2.91138,3434.8,3434.3,2.91177]